[Event "Rosh Hashanah Rapid 2022"]
[Site "Ramat Gan"]
[Date "2022.09.25"]
[Round "3.6"]
[White "Sitbon, Itay"]
[Black "Levin, Guy"]
[Result "0-1"]
[ECO "D25"]
[WhiteElo "2133"]
[BlackElo "2382"]
[Annotator "TA"]
[PlyCount "42"]
[EventDate "2022.09.25"]
[EventType "rapid"]
[EventCountry "ISR"]
[SourceTitle "playchess.com"]
[Source "ChessBase"]
[SourceQuality "1"]
[TimeControl "900+5"]

{[%evp 11,42,30,39,8,18,19,18,18,10,7,19,7,29,-2,-2,-1,-8,-6,-4,-10,0,0,0,0,56,58,59,46,58,51,80,-1342,-1290]} 1. d4 {[%emt 0:00:01]} d5 {[%emt 0:00:03]} 2. c4 {[%emt 0:00:02]} dxc4 {[%emt 0:15:12]} 3. Nf3 {[%emt 0:00:03]} Nf6 {[%emt 0:00:00]} 4. e3 {[%emt 0:00:07]} Bg4 {[%emt 0:00:00]} 5. Bxc4 {[%emt 0:00:02]} e6 {[%emt 0:00:00]} 6. O-O {[%emt 0:00:17]} Nbd7 {[%emt 0:00:00]} 7. b3 {[%emt 0:00:13] D25: Queen's Gambit Accepted: 4 e3: sidelines and 4...Bg4.} Be7 {[%emt 0:00:00]} 8. Bb2 {[%emt 0:00:01]} O-O {[%emt 0:00:00]} 9. Nbd2 {[%emt 0:00:13] The position is equal.} c5 {[%emt 0:00:00]} 10. Be2 {[%emt 0:00:15]} Rc8 {[%emt 0:00:00]} 11. Rc1 {[%emt 0:00:08]} a6 {[%emt 0:00:00] [#]} 12. Ne5 $146 {[%emt 0:00:26]} ({Predecessor:} 12. h3 Bh5 13. a4 Bg6 14. Nc4 Nd5 15. a5 cxd4 16. Bxd4 Bb4 17. Ra1 Nc3 18. Qd2 Nxe2+ 19. Qxe2 {1-0 (76) Erigaisi,A (2559)-Demchenko,A (2641) Chess.com INT 2020}) 12... Bxe2 {[%emt 0:00:00]} 13. Qxe2 {[%emt 0:00:02]} cxd4 {[%emt 0:00:00]} 14. Rxc8 {[%emt 0:00:18]} Qxc8 {[%emt 0:00:00]} 15. Rc1 {[%emt 0:00:05]} ({But not} 15. Bxd4 Nxe5 16. Bxe5 Qc2 $17) 15... Qd8 {[%emt 0:00:00]} 16. Bxd4 {[%emt 0:01:07]} Nd5 {[%emt 0:00:00]} 17. Ndc4 {[%emt 0:01:19]} b5 {[%emt 0:00:00]} (17... Nxe5 $11 18. Nxe5 f6) 18. Nc6 $14 {[%emt 0:01:27]} Qe8 {[%emt 0:00:00]} 19. Nxe7+ {[%emt 0:00:13]} Qxe7 {[%emt 0:00:00]} 20. Na5 {[%emt 0:01:03]} Qa3 {[%emt 0:00:00]} 21. Nc6 $2 {[%emt 0:00:17][%mdl 8192] [#]} Qxc1+ {[%emt 0:00:00] Weighted Error Value: White=0.37/Black=0.12 (very precise)} 0-1

[Event "Rosh Hashanah Rapid 2022"]
[Site "Ramat Gan"]
[Date "2022.09.25"]
[Round "3.7"]
[White "Aizenberg, Benny"]
[Black "Levitan, Tal"]
[Result "1-0"]
[ECO "C45"]
[WhiteElo "2412"]
[BlackElo "2212"]
[Annotator "TA"]
[PlyCount "65"]
[EventDate "2022.09.25"]
[EventType "rapid"]
[EventCountry "ISR"]
[SourceTitle "playchess.com"]
[Source "ChessBase"]
[SourceQuality "1"]
[TimeControl "900+5"]

{[%evp 14,65,14,-35,-33,-33,-25,-35,34,50,48,43,37,35,36,39,29,32,32,0,51,45,52,42,36,25,25,33,106,77,193,194,183,194,483,479,472,424,522,525,509,487,554,562,1233,1233,1233,1191,1361,1293,1197,1162,997,953]} 1. e4 {[%emt 0:00:01]} e5 {[%emt 0:00:01]} 2. Nf3 {[%emt 0:00:01]} Nc6 {[%emt 0:00:02]} 3. d4 {[%emt 0:00:01]} exd4 {[%emt 0:00:01]} 4. Nxd4 {[%emt 0:00:01]} Nf6 {[%emt 0:00:02]} 5. Nxc6 {[%emt 0:00:02]} bxc6 {[%emt 0:00:02]} 6. e5 {[%emt 0:00:01]} Qe7 {[%emt 0:00:01]} 7. Qe2 {[%emt 0:00:01]} Nd5 {[%emt 0:00:01]} 8. h4 {[%emt 0:00:00]} (8. c4 $11 Ba6 9. Nd2) 8... Qe6 $15 {[%emt 0:00:08] C45: Scotch Game.} 9. c4 {[%emt 0:00:14]} Nb6 {[%emt 0:00:03]} 10. Nd2 {[%emt 0:00:11]} Ba6 {[%emt 0:01:04]} (10... Be7 $15) 11. b3 $14 {[%emt 0:00:10]} Bb4 {[%emt 0:02:36]} 12. Bb2 {[%emt 0:00:06] Inhibits Bc3.} O-O {[%emt 0:00:29]} 13. O-O-O {[%emt 0:00:53]} d5 {[%emt 0:01:02]} 14. exd6 $1 {[%emt 0:00:09] [#] aiming for Qxe6.} Qxe2 {[%emt 0:01:01]} 15. Bxe2 {[%emt 0:00:02]} cxd6 {[%emt 0:00:01] [#]} 16. h5 $146 {[%emt 0:00:24]} ({Predecessor:} 16. a3 Bxd2+ 17. Rxd2 d5 18. cxd5 Bxe2 19. Rxe2 Nxd5 20. g3 Rfe8 21. Rhe1 Rxe2 22. Rxe2 {1-0 (58) Marosi,L (2281)-Horvath,K (1991) Balatonlelle 2018}) 16... h6 {[%emt 0:00:54]} (16... d5 $11) 17. a3 {[%emt 0:00:57]} Bxd2+ {[%emt 0:00:01]} 18. Rxd2 {[%emt 0:00:02]} (18. Kxd2 d5 $11) 18... d5 {[%emt 0:00:01]} 19. Rh4 {[%emt 0:00:40]} (19. cxd5 $5 {[%cal Re2a6]} Bxe2 20. Rxe2 Nxd5 21. Rh4 $14) 19... dxc4 {[%emt 0:00:27]} 20. bxc4 {[%emt 0:00:02][%cal Bb3c4,Bc4c5,Bc5b6,Bb6b7][%mdl 32]} Na4 {[%emt 0:00:27]} (20... c5 $14) 21. Bd4 {[%emt 0:00:20] Strongly threatening c5. White is more active. This bishop pair is nice.} Nb6 {[%emt 0:00:46] [#]} (21... c5 $16 {is a better defense.} 22. Be3 Rfd8) 22. c5 $1 $18 {[%emt 0:01:25][%csl LRa6,LRb6]} Bxe2 {[%emt 0:00:54]} 23. cxb6 {[%emt 0:00:02] b7 is the strong threat.} ({Inferior is} 23. Rxe2 Nd5 $11) 23... c5 $2 {[%emt 0:02:57]} (23... Bf1) 24. b7 {[%emt 0:00:25] White is clearly winning.} (24. Rxe2 axb6 25. Bb2 f6 $18) 24... Rab8 {[%emt 0:00:07]} 25. Bxc5 {[%emt 0:00:02]} ({Don't do} 25. Rxe2 cxd4 26. Re7 (26. Rxd4 Rxb7 27. Rc4 Rd8 $11) 26... g6 $18) 25... Rfe8 {[%emt 0:00:01]} 26. Rb4 {[%emt 0:00:22]} a5 {[%emt 0:01:04]} 27. Rb6 {[%emt 0:00:05]} Bf1 {[%emt 0:01:44]} 28. Bd6 {[%emt 0:00:08]} Bxg2 {[%emt 0:00:01]} 29. Bxb8 {[%emt 0:00:02]} Rxb8 {[%emt 0:00:01]} 30. Rd7 {[%emt 0:00:03] Black must now prevent Rc7.} Bf3 {[%emt 0:00:09]} 31. Rc7 {[%emt 0:00:15] White wants to mate with Rc8+.} Kh7 {[%emt 0:00:01]} 32. Kd2 {[%emt 0:00:09]} Bd5 {[%emt 0:00:18]} 33. Kc3 {[%emt 0:00:07] Weighted Error Value: White=0.06 (flawless) /Black=0.40} 1-0

[Event "Rosh Hashanah Rapid 2022"]
[Site "Ramat Gan"]
[Date "2022.09.25"]
[Round "3.8"]
[White "Soybert, Ori"]
[Black "Vagman, Roy"]
[Result "0-1"]
[ECO "B98"]
[WhiteElo "1761"]
[BlackElo "2287"]
[Annotator "TA"]
[PlyCount "70"]
[EventDate "2022.09.25"]
[EventType "rapid"]
[EventCountry "ISR"]
[SourceTitle "playchess.com"]
[Source "ChessBase"]
[SourceQuality "1"]
[TimeControl "900+5"]

{[%evp 19,70,49,56,4,7,5,2,10,27,18,24,23,32,41,110,0,0,10,3,13,16,0,0,-2,-5,-13,0,-33,-20,-61,-56,-48,-56,-57,-53,-85,-75,-75,-62,-124,-132,-162,-139,-145,-102,-150,-106,-190,-117,-193,-177,-29998,-29999]} 1. e4 {[%emt 0:00:01]} c5 {[%emt 0:00:03]} 2. Nf3 {[%emt 0:00:02]} d6 {[%emt 0:00:02]} 3. d4 {[%emt 0:00:01]} cxd4 {[%emt 0:00:01]} 4. Nxd4 {[%emt 0:00:01]} Nf6 {[%emt 0:00:01]} 5. Nc3 {[%emt 0:00:01]} a6 {[%emt 0:00:10]} 6. Bg5 {[%emt 0:00:02]} e6 {[%emt 0:00:21]} 7. f4 {[%emt 0:00:04]} Be7 {[%emt 0:00:07]} 8. Qf3 {[%emt 0:00:09]} Qc7 {[%emt 0:00:49]} 9. O-O-O {[%emt 0:00:03]} Nc6 {[%emt 0:01:51]} 10. Nxc6 {[%emt 0:01:28]} Qxc6 {[%emt 0:00:39] 10...Qxc6 scores better than 10...bxc6.} 11. e5 {[%emt 0:00:44] B98: Sicilian Najdorf: 6 Bg5 e6 7 f4 Be7, sidelines.} (11. Qg3 $14) 11... Qxf3 $11 {[%emt 0:01:10]} 12. gxf3 {[%emt 0:00:02][%cal Bg2f3,Bf3f4,Bf4g5][%mdl 32]} dxe5 {[%emt 0:00:34]} 13. fxe5 {[%emt 0:00:02] The position is equal.} Nd7 {[%emt 0:00:32]} 14. Bxe7 {[%emt 0:00:09]} Kxe7 {[%emt 0:00:02]} 15. f4 {[%emt 0:00:06]} g5 {[%emt 0:03:06]} 16. fxg5 {[%emt 0:00:54]} Nxe5 {[%emt 0:00:01] [#]} (16... h6 $14) 17. h4 $146 {[%emt 0:00:42]} (17. Bg2 $16) ({Predecessor:} 17. Bg2 h6 18. Rhe1 Nc4 19. Nd5+ Kf8 20. Nc7 Rb8 21. b3 Nb6 22. g6 Ke7 23. gxf7 {1-0 (41) Simacek,P (2453)-Mueller,R (2342) Imperia 2005}) 17... Bd7 {[%emt 0:02:08]} 18. Bg2 {[%emt 0:02:49]} Bc6 {[%emt 0:00:15]} 19. Bxc6 {[%emt 0:00:11]} Nxc6 {[%emt 0:00:20]} 20. Ne4 {[%emt 0:00:32]} Rad8 {[%emt 0:00:28]} 21. Nc5 {[%emt 0:00:30]} b6 {[%emt 0:00:44]} 22. Ne4 {[%emt 0:02:41]} h6 {[%emt 0:00:31]} 23. Rdf1 {[%emt 0:02:38]} hxg5 {[%emt 0:00:21]} 24. Nxg5 {[%emt 0:00:08]} f6 {[%emt 0:00:08]} 25. Ne4 {[%emt 0:00:03]} f5 {[%emt 0:00:37]} 26. Ng5 {[%emt 0:00:09]} Rd6 {[%emt 0:00:14]} 27. h5 {[%emt 0:00:26]} Rh6 {[%emt 0:00:02]} 28. Nf3 {[%emt 0:00:20]} Kf6 {[%emt 0:00:16] Black is more active.} 29. Rfg1 {[%emt 0:00:12]} (29. Rh3 $15) 29... e5 $17 {[%emt 0:00:18][%cal Be6e5,Be5e4][%mdl 32]} 30. Rg8 {[%emt 0:00:28]} e4 {[%emt 0:00:07]} 31. Nd2 {[%emt 0:00:48]} b5 {[%emt 0:00:42] Against Nc4} 32. Rf8+ {[%emt 0:00:17]} ({White should play} 32. Rf1 Ke5 33. Rg5) 32... Ke5 {[%emt 0:00:05]} 33. Nf1 {[%emt 0:00:31] [#]} (33. Re8+ $17 Rde6 34. Rf8) 33... Nd4 {[%emt 0:00:16]} (33... Rd8 $1 $19 {[%cal Rd8f8]} 34. Rf7 f4) 34. Ng3 {[%emt 0:00:15]} (34. b3 $17) 34... f4 {[%emt 0:00:20]} 35. Nf1 {[%emt 0:00:19]} (35. c3 $19 fxg3 36. cxd4+ Kxd4 37. Rg8) 35... Ne2+ {[%emt 0:00:02] Weighted Error Value: White=0.44/Black=0.13 (very precise)} 0-1

[Event "Rosh Hashanah Rapid 2022"]
[Site "Ramat Gan"]
[Date "2022.09.25"]
[Round "3.9"]
[White "Zak, Uriel"]
[Black "Dvir, Ofir"]
[Result "1-0"]
[ECO "A48"]
[WhiteElo "2262"]
[BlackElo "2084"]
[Annotator "TA"]
[PlyCount "101"]
[EventDate "2022.09.25"]
[EventType "rapid"]
[EventCountry "ISR"]
[SourceTitle "playchess.com"]
[Source "ChessBase"]
[SourceQuality "1"]
[TimeControl "900+5"]

{[%evp 12,100,15,20,45,12,18,32,45,1,33,27,32,29,65,63,66,63,84,33,77,80,116,70,72,50,102,118,160,37,52,24,77,40,64,0,0,-15,-18,-26,-26,-26,-15,-27,-24,-20,-20,-24,-33,-28,-28,-53,-52,-48,-28,-28,-15,-20,0,-16,0,0,381,-12,-9,-9,378,0,399,75,78,83,514,487,1028,697,709,700,700,700,629,635,1056,885,819,780,29987,765,29986,29987,29999]} 1. Nf3 {[%emt 0:01:08] Ramirez Alvarez,A} Nf6 {[%emt 0:00:02]} 2. d4 {[%emt 0:00:01]} g6 {[%emt 0:00:04][%cal Bg7g6,Bg6g5][%mdl 32]} 3. Bg5 {[%emt 0:00:03][%cal Bc1g5,Bg5h4,Bh4g3][%mdl 32]} Bg7 {[%emt 0:00:03]} 4. c3 {[%emt 0:00:00]} h6 {[%emt 0:02:39]} 5. Bh4 {[%emt 0:00:04]} d6 {[%emt 0:00:02]} 6. Nbd2 {[%emt 0:00:02]} g5 {[%emt 0:00:08]} 7. Bg3 {[%emt 0:00:01]} Nh5 {[%emt 0:00:01] A48: 1 d4 Nf6 2 Nf3 g6: Torre, London and Colle Systems.} 8. e3 {[%emt 0:00:03]} Nd7 {[%emt 0:00:59]} 9. Bd3 {[%emt 0:00:06] [#]} Nb6 $146 {[%emt 0:00:34] White is slightly better.} ({Predecessor:} 9... e6 10. O-O Qe7 11. a4 f5 12. Ne1 Ndf6 13. f4 Nxg3 14. hxg3 O-O 15. e4 c5 16. dxc5 {0-1 (38) Short,N (2664)-Kasparov,G (2812) Saint Louis 2015 CBM 166 Extra [Ramirez Alvarez,A]}) 10. Qc2 {[%emt 0:00:06]} Be6 {[%emt 0:01:14]} 11. e4 {[%emt 0:00:31]} Nxg3 {[%emt 0:00:26]} 12. hxg3 {[%emt 0:00:02]} c5 {[%emt 0:00:34]} 13. d5 {[%emt 0:00:40]} Bd7 {[%emt 0:00:29]} 14. a4 {[%emt 0:00:18]} a5 {[%emt 0:02:43]} 15. Nc4 {[%emt 0:00:19]} ({White should play} 15. Qb3 $16) 15... Nxc4 {[%emt 0:01:04]} 16. Bxc4 {[%emt 0:00:02]} Qb6 {[%emt 0:00:00]} 17. O-O-O {[%emt 0:00:38]} (17. Nd2 $16) 17... O-O-O $14 {[%emt 0:00:58]} 18. Rde1 {[%emt 0:00:41]} e6 {[%emt 0:00:59]} ({Better is} 18... g4 $14) 19. Nd2 $16 {[%emt 0:00:56][%cal Bf3d2,Bd2c4,Bc4e3,Be3f5][%mdl 32]} Rde8 {[%emt 0:00:51]} 20. dxe6 {[%emt 0:00:54]} (20. Bb5 $16) 20... fxe6 $14 {[%emt 0:00:07]} 21. Re2 {[%emt 0:01:18]} Rhf8 {[%emt 0:00:13]} (21... Rd8 $11 {remains equal.}) 22. Rhe1 {[%emt 0:00:05][%cal Oc4b5]} Bc6 {[%emt 0:01:14]} 23. Bb3 {[%emt 0:00:47]} (23. Bb5 $14) 23... Qd8 {[%emt 0:00:11]} 24. Nc4 {[%emt 0:00:46]} d5 {[%emt 0:00:22]} 25. exd5 exd5 {[%emt 0:00:00] Threatens to win with ...Rxe2.} 26. Rxe8 Bxe8 {[%emt 0:00:01]} 27. Ne3 {[%emt 0:02:32]} c4 {[%emt 0:00:04]} 28. Ba2 {[%emt 0:00:11]} Bc6 {[%emt 0:00:17]} 29. Rd1 {[%emt 0:00:28]} Qb6 {[%emt 0:00:32]} 30. Nf5 {[%emt 0:01:21]} Be5 {[%emt 0:00:28]} 31. f3 {[%emt 0:00:43]} Kb8 {[%emt 0:00:03]} 32. g4 $1 {[%emt 0:00:26]} Rf6 {[%emt 0:00:11]} 33. Kb1 {[%emt 0:00:16]} Ka7 {[%emt 0:00:01]} 34. Re1 {[%emt 0:00:17]} Bf4 {[%emt 0:00:05]} 35. Nd4 {[%emt 0:00:10]} Bd7 {[%emt 0:00:02]} 36. Re7 {[%emt 0:00:30]} Rd6 {[%emt 0:00:14][%mdl 8192] [#]} (36... Bc6 $11) 37. Qd1 $2 {[%emt 0:00:17]} (37. Qf2 $1 $18) 37... Qd8 $11 {[%emt 0:00:06]} 38. Re2 {[%emt 0:00:19][%cal Og2g3]} Qf8 $2 {[%emt 0:00:03][%mdl 8192] [#]} (38... Qf6 $11 {and Black stays safe.}) 39. Ka1 $2 {[%emt 0:00:04]} (39. g3 $1 $18) 39... Qf7 $2 {[%emt 0:00:05][%mdl 8192]} (39... Qf6 $11) 40. Bb1 $2 {[%emt 0:00:08]} (40. g3 $18 {and White stays clearly on top.}) 40... Rb6 $16 {[%emt 0:00:03]} 41. Bf5 {[%emt 0:00:12] And now Bxd7 would win.} Bxf5 {[%emt 0:00:05][%mdl 8192]} (41... Bc6 $16 {is more resistant.}) 42. gxf5 $18 {[%emt 0:00:03][%cal Bg4f5,Bf5e6][%mdl 32]} h5 {[%emt 0:00:03]} (42... Bb8 $142 43. Nb5+ Ka8) 43. Re6 {[%emt 0:00:10]} Rxe6 {[%emt 0:00:09]} 44. fxe6 {[%emt 0:00:03][%mdl 4096] Endgame KQB-KQN} Qe8 {[%emt 0:00:01]} 45. Nb5+ {[%emt 0:00:02]} Kb8 {[%emt 0:00:04]} 46. Qxd5 {[%emt 0:00:04] Black must now prevent e7.} h4 {[%emt 0:00:00]} 47. Qxc4 {[%emt 0:00:05]} Qe7 {[%emt 0:00:11]} 48. Ka2 {[%emt 0:00:02]} Qh7 {[%emt 0:00:04]} 49. Qd5 {[%emt 0:00:08]} (49. e7 $142 Qg6 50. Qd5 b6 51. Qd8+ Kb7 52. e8=Q Qxe8 53. Qxe8 h3 54. Qd7+ Kb8 55. Nd4) 49... Bc7 {[%emt 0:00:09]} 50. Qc5 {[%emt 0:00:18]} Bf4 {[%emt 0:00:06]} 51. Qf8# {[%emt 0:00:08] Weighted Error Value: White=0.60/Black=1.01} 1-0

[Event "Rosh Hashanah Rapid 2022"]
[Site "Ramat Gan"]
[Date "2022.09.25"]
[Round "3.10"]
[White "Kaganskiy, Gleb"]
[Black "Federovski, Adi"]
[Result "1-0"]
[ECO "B22"]
[WhiteElo "2225"]
[BlackElo "1967"]
[Annotator "TA"]
[PlyCount "89"]
[EventDate "2022.09.25"]
[EventType "rapid"]
[EventCountry "ISR"]
[SourceTitle "playchess.com"]
[Source "ChessBase"]
[SourceQuality "1"]
[TimeControl "900+5"]

{[%evp 9,89,72,87,74,89,77,70,69,67,44,88,35,29,13,60,66,60,0,7,0,0,-9,-8,-9,-15,-11,27,25,25,0,0,12,33,29,47,31,34,35,116,84,103,82,134,117,214,196,175,76,88,82,87,75,183,123,210,38,54,89,293,153,293,194,220,217,625,502,793,817,29991,29992,29997,29997,29997,29992,29997,4133,29982,29983,29981,29981,29997,634]} 1. e4 {[%emt 0:00:02]} c5 {[%emt 0:00:01]} 2. Nf3 {[%emt 0:00:01]} Nc6 {[%emt 0:00:02]} 3. c3 {[%emt 0:00:22]} d6 {[%emt 0:00:12]} 4. d4 {[%emt 0:00:02]} Nf6 {[%emt 0:00:44]} 5. d5 {[%emt 0:00:33]} Nb8 {[%emt 0:00:35]} 6. Be2 {[%emt 0:00:33] B22: Sicilian: 2 c3.} g6 {[%emt 0:00:04]} 7. O-O {[%emt 0:00:04]} Bg7 {[%emt 0:00:02]} 8. Re1 {[%emt 0:00:48] White is slightly better.} O-O {[%emt 0:00:02]} 9. Bf1 {[%emt 0:00:00]} e5 {[%emt 0:00:52]} 10. dxe6 {[%emt 0:00:09]} (10. c4 $16) 10... Bxe6 $14 {[%emt 0:00:02] [#]} 11. Ng5 $146 {[%emt 0:01:29]} ({Predecessor:} 11. Bg5 Nc6 12. Nbd2 h6 13. Bh4 g5 14. Bg3 d5 15. Qc2 Nh5 16. Rad1 Nxg3 17. hxg3 {0-1 (25) Vajda,L (2534)-Saraci,N (2415) Chess.com INT 2021}) 11... Nc6 {[%emt 0:01:01]} (11... Bg4 $11 {is superior.} 12. f3 Bc8) 12. Nxe6 fxe6 {[%emt 0:00:02]} 13. Bf4 {[%emt 0:00:27]} (13. Nd2 $14) 13... d5 $11 {[%emt 0:00:46]} 14. Bg5 {[%emt 0:01:39] [#] Strongly threatening e5.} h6 {[%emt 0:02:19]} (14... dxe4 15. Nd2 $16) 15. Bh4 {[%emt 0:00:13][%cal Bg5h4,Bh4g3,Bg3e5][%mdl 32] aiming for e5.} g5 {[%emt 0:00:08]} (15... dxe4 16. Nd2 $16) 16. exd5 {[%emt 0:00:07]} exd5 {[%emt 0:00:56]} (16... gxh4 17. dxc6 Qxd1 18. Rxd1 $16) 17. Bg3 {[%emt 0:00:03]} c4 {[%emt 0:00:43] Inhibits Bd3.} (17... Ne4 {is interesting.} 18. Nd2 Nxg3 19. hxg3 Qf6) 18. Nd2 {[%emt 0:00:39]} Qd7 {[%emt 0:00:44]} 19. Nf3 {[%emt 0:00:28]} Rae8 {[%emt 0:00:03]} 20. Ne5 {[%emt 0:00:35]} Nxe5 {[%emt 0:00:02]} (20... Qf5 $5 {[%cal Rc6e5]} 21. Qf3 Qc8 $11) 21. Bxe5 {[%emt 0:00:07]} Qf5 {[%emt 0:00:19]} 22. Qd4 {[%emt 0:01:25]} b6 {[%emt 0:01:34]} 23. Rad1 {[%emt 0:00:05]} Rd8 {[%emt 0:00:07]} ({Black should play} 23... Rf7 $14) 24. g3 {[%emt 0:00:20]} h5 {[%emt 0:00:21]} 25. Bg2 {[%emt 0:00:02]} Kh8 {[%emt 0:00:40]} (25... Rfe8 $142) 26. b3 {[%emt 0:01:11]} b5 {[%emt 0:00:25]} (26... Rd7 $16 {was worth a try.} 27. Re2 (27. bxc4 dxc4 28. Qe3 Ng4 $11) 27... Rc8) 27. bxc4 {[%emt 0:00:05]} bxc4 {[%emt 0:00:04]} 28. Rb1 {[%emt 0:00:27]} (28. Qxa7 $18 {[%cal Od1d5] is more deadly. Black must now prevent Rxd5!} Rd7 29. Qc5) 28... Rd7 $16 {[%emt 0:00:06]} 29. Rb5 {[%emt 0:00:17][%cal Rg2d5]} a6 {[%emt 0:01:13]} 30. Ra5 {[%emt 0:00:26]} Ra8 {[%emt 0:02:03]} (30... Re7 $16) 31. Rc5 {[%emt 0:00:57]} ({But not} 31. Bxd5 Rad8) (31. a4 $18) 31... Re8 {[%emt 0:00:35]} (31... Rf8 $16) 32. Re3 $2 {[%emt 0:01:03]} ({Resist} 32. Bxd5 $6 Kh7 $16) (32. Rxd5 $18 Rxd5 33. Bxd5) 32... Qb1+ {[%emt 0:00:25]} 33. Bf1 {[%emt 0:00:03] A strong pair of Bishops.} Rf8 {[%emt 0:00:19] Loses the game.} (33... Re6 $16) 34. Rc6 {[%emt 0:00:44]} (34. Rf3 $18 Qg6 35. Rc6) 34... Rdf7 {[%emt 0:00:01]} (34... Ng4 $2 35. Bxg7+ Rxg7 36. Re7 $18) (34... Qf5 $16 {was necessary.} 35. Be2 g4) 35. Bxf6 {[%emt 0:01:06]} (35. Rxa6 Qf5 36. f3 Kg8 $16) 35... Bxf6 {[%emt 0:00:14]} 36. Qxd5 {[%emt 0:00:11]} Qxa2 $2 {[%emt 0:00:05]} (36... Bg7 37. Re2 (37. Qxg5 Rxf2 38. Qxh5+ Kg8 $11) 37... Rf5 38. Qxc4 Qb7) 37. Bxc4 {[%emt 0:00:33]} Qa1+ {[%emt 0:00:07]} (37... Qb1+ $142 38. Kg2 h4) 38. Kg2 $18 {[%emt 0:00:07][%cal Oe3e8] [#] Re8! would kill now. Active counter play!} Bxc3 {[%emt 0:00:02]} 39. Rh6+ {[%emt 0:00:05]} Kg8 {[%emt 0:00:10]} 40. Qxg5+ {[%emt 0:00:04]} Bg7 {[%emt 0:00:03]} 41. Rf3 {[%emt 0:00:09]} Qd4 {[%emt 0:00:10]} 42. Bxf7+ {[%emt 0:00:13]} Rxf7 {[%emt 0:00:01]} 43. Rxf7 {White mates.} Kxf7 {[%emt 0:00:01]} 44. Qg6+ {[%emt 0:00:15]} Kg8 {[%emt 0:00:13]} 45. Qe6+ {[%emt 0:00:08] Weighted Error Value: White=0.34/Black=0.66} (45. Qe8+ $142 Bf8 46. Qe6+ Kg7 47. Qg6#) 1-0

[Event "Rosh Hashanah Rapid 2022"]
[Site "Ramat Gan"]
[Date "2022.09.25"]
[Round "4.1"]
[White "Mindlin, Alon"]
[Black "Zanan, Evgeny"]
[Result "1-0"]
[ECO "E59"]
[WhiteElo "2426"]
[BlackElo "2485"]
[Annotator "TA"]
[PlyCount "69"]
[EventDate "2022.09.25"]
[EventType "rapid"]
[EventCountry "ISR"]
[SourceTitle "playchess.com"]
[Source "ChessBase"]
[SourceQuality "1"]
[TimeControl "900+5"]

{[%evp 22,69,22,12,18,14,6,11,13,0,31,30,45,43,84,91,60,20,78,85,68,91,77,81,77,76,133,127,129,113,109,121,109,110,113,89,179,188,182,172,595,595,581,568,5304,5304,5106,1297,29992,29993]} 1. d4 {[%emt 0:00:01]} Nf6 {[%emt 0:00:03]} 2. c4 {[%emt 0:00:02]} e6 {[%emt 0:00:06]} 3. Nc3 {[%emt 0:00:04]} Bb4 {[%emt 0:00:02]} 4. e3 {[%emt 0:00:03]} O-O {[%emt 0:00:03]} 5. Bd3 {[%emt 0:00:02]} d5 {[%emt 0:00:02]} 6. Nf3 {[%emt 0:00:03]} dxc4 {[%emt 0:00:03]} 7. Bxc4 {[%emt 0:00:02]} c5 {[%emt 0:00:02]} 8. O-O {[%emt 0:00:18]} Nc6 {[%emt 0:00:02]} 9. a3 {[%emt 0:00:08]} Bxc3 {[%emt 0:00:02]} 10. bxc3 {[%emt 0:00:02]} Qc7 {[%emt 0:00:02]} 11. Bb2 {[%emt 0:00:36]} e5 {[%emt 0:01:08]} 12. h3 {[%emt 0:00:02]} Bf5 {[%emt 0:00:42] E59: Nimzo-Indian: Rubinstein: Main Line: 7...Nc6 8 a3 Bxc3 9 bxc3 dxc4.} 13. Bb5 {[%emt 0:02:28]} (13. dxc5 Na5 14. Qe2 Nxc4 15. Qxc4 Be6 $15) 13... e4 {[%emt 0:01:40]} 14. Nd2 {[%emt 0:00:04]} Rad8 {[%emt 0:00:28] The position is equal.} 15. Qe2 {[%emt 0:01:56]} a6 {[%emt 0:00:52]} 16. Bxc6 {[%emt 0:00:12] Strongly threatening Ba4.} Qxc6 {[%emt 0:00:05]} 17. c4 {[%emt 0:00:05]} Rfe8 {[%emt 0:00:40]} 18. d5 {[%emt 0:01:01]} Qd6 {[%emt 0:00:05][%cal Ob7b5] [#]} 19. f4 $146 {[%emt 0:00:48]} ({Predecessor:} 19. Rfd1 Bg6 20. Nf1 Bh5 21. g4 Bg6 22. Ng3 Nd7 23. a4 a5 24. Rab1 b6 25. Bc3 {½-½ (40) Rau,M (2289)-Packroff,H (2201) ICCF email 2012}) 19... b5 {[%emt 0:04:36]} (19... exf3 $1 $11 20. Rxf3 Bg6) 20. Be5 $16 {[%emt 0:00:17] White leaves nothing to chance now.} (20. cxb5 Nxd5 21. bxa6 Qb6 $15) 20... Rxe5 {[%emt 0:00:40]} 21. fxe5 {[%emt 0:00:02]} Qxe5 {[%emt 0:00:01]} 22. cxb5 {[%emt 0:01:15]} axb5 {[%emt 0:00:02]} 23. a4 $1 {[%emt 0:00:00][%cal Ba3a4,Ba4b5][%mdl 32]} ({Reject} 23. Qxb5 $6 Bxh3 $1 {[%mdl 512]} 24. Ra2 Qxd5 $11) 23... Qxd5 {[%emt 0:03:37]} (23... Ra8 $142) 24. axb5 {[%emt 0:00:16] Threatens to win with Nc4.} Be6 {[%emt 0:00:01]} 25. Rfd1 {[%emt 0:00:44]} Rb8 {[%emt 0:00:17]} 26. Rab1 {[%emt 0:00:23]} c4 {[%emt 0:00:12]} 27. b6 {[%emt 0:00:08]} Qc6 {[%emt 0:00:15]} 28. b7 {[%emt 0:01:02][%cal Od2c4]} Rxb7 {[%emt 0:00:05]} (28... c3 $16 29. Rdc1 h6) 29. Rxb7 $18 {[%emt 0:00:03]} Qxb7 {[%emt 0:00:01] [#]} 30. Nxe4 $1 {[%emt 0:00:19][%mdl 512] Intending Rd8+ and mate.} Qb6 {[%emt 0:01:26] [#] Against Rd8+} (30... h6 {is tougher.} 31. Rd8+ Kh7) (30... Qc7 31. Qd2) 31. Qb2 $3 {[%emt 0:01:26][%mdl 512]} Qxe3+ {[%emt 0:00:07]} 32. Kh1 {[%emt 0:00:01] Threatening mate with Rd8+.} h6 {[%emt 0:00:11]} 33. Nxf6+ {[%emt 0:00:01]} gxf6 {[%emt 0:00:01]} 34. Qxf6 {[%emt 0:00:02] White threatens Rd8+ and mate.} Kh7 {[%emt 0:00:09]} 35. Rd8 {[%emt 0:00:02] Weighted Error Value: White=0.05 (flawless) /Black=0.69} 1-0